lending/lending_fUSD_20240120
["ID","MTS","AMOUNT","RATE_DAILY","PERIOD"]
[312304202,1705766583885,-377.26652094,0.00047397,40]
[312304203,1705766584051,-500.0,0.00047397,40]
[312304204,1705766584078,-218.36341665,0.00047397,40]
[312304205,1705766584103,-500.0,0.00047397,40]
[312304206,1705766584128,-581.13,0.00047397,40]
[312304207,1705766584154,-601.79,0.00047397,40]
[312304208,1705766584179,-468.86488834,0.00047397,40]
[312304209,1705766584204,-500.0,0.00047397,40]
[312304210,1705766584230,-749.18,0.00047397,40]
[312304211,1705766584255,-645.65,0.00047397,40]
[312304212,1705766584281,-673.47,0.00047397,40]
[312304213,1705766584306,-500.0,0.00047397,40]
[312304214,1705766584332,-1014.7,0.00047397,40]
[312304215,1705766584357,-731.43,0.00047397,40]
[312304216,1705766584382,-824.01,0.00047397,40]
[312304217,1705766584408,-56463.75891987,0.000474,120]
[312304218,1705766584433,-500.0,0.00047452,30]
[312304219,1705766584459,-400.0,0.00047452,120]
[312304220,1705766584485,-200.0,0.000475,60]
[312304221,1705766584514,-1000000.0,0.000475,120]
[312304222,1705766584539,-156.42209017,0.00047621,30]
[312304223,1705766584563,-500.0,0.00047671,40]
[312304224,1705766584588,-500.0,0.00047671,40]
[312304225,1705766584612,-500.0,0.00047671,40]
[312304226,1705766584637,-2646.67,0.00047671,40]
[312304227,1705766584662,-1087.88,0.00047671,40]
[312304228,1705766584687,-500.0,0.00047671,40]
[312304229,1705766584711,-2773.99,0.00047671,40]
[312304230,1705766584736,-500.0,0.00047671,40]
[312304231,1705766584761,-500.0,0.00047671,40]
[312304232,1705766584785,-786.02,0.00047671,40]
[312304233,1705766584811,-1837.12,0.00047671,40]
[312304234,1705766584839,-1753.47,0.00047671,40]
[312304235,1705766584863,-1007.56,0.00047671,30]
[312304236,1705766584887,-500.0,0.00047671,40]
[312304237,1705766584912,-500.0,0.00047671,40]
[312304238,1705766584938,-500.0,0.00047671,40]
[312304239,1705766584963,-869.49,0.00047671,40]
[312304240,1705766584987,-518.52,0.00047671,40]
[312304241,1705766585012,-500.0,0.00047671,40]
[312304242,1705766585041,-552.05,0.00047671,40]
[312304243,1705766585068,-500.0,0.00047671,40]
[312304244,1705766585093,-734.76,0.00047671,40]
[312304245,1705766585119,-535.85,0.00047671,40]
[312304246,1705766585144,-2536.89,0.00047671,40]
[312304247,1705766585170,-500.0,0.00047671,40]
[312304248,1705766585196,-500.0,0.00047671,40]
[312304249,1705766585221,-451.14148074,0.00047671,40]
[312304250,1705766585248,-581.13,0.00047671,40]
[312304251,1705766585272,-601.79,0.00047671,40]
[312304252,1705766585299,-500.0,0.00047671,40]
[312304253,1705766585324,-749.18,0.00047671,40]
[312304254,1705766585349,-645.65,0.00047671,40]
[312304255,1705766585375,-673.47,0.00047671,40]
[312304256,1705766585403,-500.0,0.00047671,40]
[312304257,1705766585429,-1014.7,0.00047671,40]
[312304258,1705766585455,-731.43,0.00047671,40]
[312304259,1705766585481,-824.01,0.00047671,40]
[312304260,1705766585509,-637.48993283,0.0004768,120]
[312304261,1705766585536,-2593.07339075,0.00047778,120]
[312304262,1705766585561,-20580.98405402,0.000478,120]
[312304263,1705766585586,-262094.78088208,0.0004787,30]
[312304264,1705766585612,-350.0,0.0004789,120]
[312304265,1705766585640,-40000.0,0.000479,120]
[312304266,1705766585665,-322.78789976,0.00047945,120]
[312304267,1705766585690,-29906.570706,0.00047945,120]
[312304268,1705766585716,-1564.559291,0.00047945,120]
[312304269,1705766585740,-500.0,0.00047945,40]
[312304270,1705766585764,-500.0,0.00047945,40]
[312304271,1705766585791,-500.0,0.00047945,40]
[312304272,1705766585815,-2646.67,0.00047945,40]
[312304273,1705766585842,-1087.88,0.00047945,40]
[312304274,1705766585867,-500.0,0.00047945,40]
[312304275,1705766585892,-2773.99,0.00047945,40]
[312304276,1705766585917,-500.0,0.00047945,40]
[312304277,1705766585941,-500.0,0.00047945,40]
[312304278,1705766585968,-786.02,0.00047945,40]
[312304279,1705766585994,-1837.12,0.00047945,40]
[312304280,1705766586020,-1753.47,0.00047945,40]
[312304281,1705766586044,-1007.56,0.00047945,30]
[312304282,1705766586069,-500.0,0.00047945,40]
[312304283,1705766586094,-500.0,0.00047945,40]
[312304284,1705766586119,-500.0,0.00047945,40]
[312304285,1705766586144,-869.49,0.00047945,40]
[312304286,1705766586168,-518.52,0.00047945,40]
[312304287,1705766586193,-500.0,0.00047945,40]
[312304288,1705766586219,-552.05,0.00047945,40]
[312304289,1705766586244,-500.0,0.00047945,40]
[312304290,1705766586268,-734.76,0.00047945,40]
[312304291,1705766586294,-535.85,0.00047945,40]
[312304292,1705766586319,-2536.89,0.00047945,40]
[312304293,1705766586347,-233.90902449,0.00047945,40]
[312304294,1705766586374,-500.0,0.00047945,40]
[312304295,1705766586398,-581.13,0.00047945,40]
[312304296,1705766586424,-601.79,0.00047945,40]
[312304297,1705766586449,-500.0,0.00047945,40]
[312304298,1705766586474,-749.18,0.00047945,40]
[312304299,1705766586498,-645.65,0.00047945,40]
[312304300,1705766586523,-673.47,0.00047945,40]
[312304301,1705766586548,-500.0,0.00047945,40]
[312304302,1705766586574,-1014.7,0.00047945,40]
[312304303,1705766586600,-731.43,0.00047945,40]
[312304304,1705766586626,-824.01,0.00047945,40]
[312304305,1705766586654,-500.0,0.00047945,30]
[312304306,1705766586682,-500.0,0.00047987,45]
[312304307,1705766586848,-500.0,0.00048,30]
[312304308,1705766586876,-1677505.47480668,0.00048,120]
[312304309,1705766615697,-155.0,0.0004,30]
[312304310,1705766615724,-3231.89055485,0.0004,30]
[312304311,1705766615772,-1756.97181357,0.00042,120]
[312304312,1705766615814,-364.00729183,0.00043835,40]
[312304313,1705766615842,-500.0,0.00043835,40]
[312304314,1705766615868,-924.66,0.00043835,40]
[312304315,1705766615892,-500.0,0.00043835,40]
[312304316,1705766615916,-500.0,0.0004389,30]
[312304317,1705766615943,-500.0,0.0004389,30]
[312304318,1705766615983,-500.0,0.00044109,40]
[312304319,1705766616010,-924.66,0.00044109,40]
[312304320,1705766616035,-500.0,0.00044109,40]
[312304321,1705766616063,-500.0,0.00044383,40]
[312304322,1705766616090,-924.66,0.00044383,40]
[312304323,1705766616115,-500.0,0.00044383,40]
[312304324,1705766616141,-500.0,0.00044438,30]
[312304325,1705766616166,-500.0,0.00044438,30]
[312304326,1705766616192,-500.0,0.00044657,40]
[312304327,1705766616217,-924.66,0.00044657,40]
[312304328,1705766616452,-500.0,0.00044657,40]
[312304329,1705766616481,-500.0,0.00044931,40]
[312304330,1705766616507,-924.66,0.00044931,40]
[312304331,1705766616532,-500.0,0.00044931,40]
[312304332,1705766616558,-536.05756555,0.00044986,30]
[312304333,1705766616583,-500.0,0.00044986,30]
[312304334,1705766616611,-500.39932627,0.00045,120]
[312304335,1705766616634,-549.48893969,0.00045,60]
[312304336,1705766616661,-945.6608598,0.00045,30]
[312304337,1705766616688,-500.0,0.00045205,40]
[312304338,1705766616718,-924.66,0.00045205,40]
[312304339,1705766616745,-500.0,0.00045205,40]
[312304340,1705766616772,-500.0,0.00045479,40]
[312304341,1705766616798,-924.66,0.00045479,40]
[312304342,1705766616826,-500.0,0.00045479,40]
[312304343,1705766616852,-500.0,0.00045753,40]
[312304344,1705766616876,-924.66,0.00045753,40]
[312304345,1705766616903,-500.0,0.00045753,40]
[312304346,1705766616935,-500.0,0.00046027,40]
[312304347,1705766616960,-924.66,0.00046027,40]
[312304348,1705766616987,-500.0,0.00046027,40]
[312304349,1705766617011,-3646.09568514,0.00046295,30]
[312304350,1705766617036,-500.0,0.00046301,40]
[312304351,1705766617060,-924.66,0.00046301,40]
[312304352,1705766617084,-500.0,0.00046301,40]
[312304353,1705766617108,-172.471,0.000465,120]
[312304354,1705766617132,-2839.828,0.000465,120]
[312304355,1705766617155,-172.472,0.000465,120]
[312304356,1705766617178,-2839.829,0.000465,120]
[312304357,1705766617202,-172.471,0.000465,120]
[312304358,1705766617227,-1852.661,0.000465,120]
[312304359,1705766617250,-172.472,0.000465,120]
[312304360,1705766617273,-2839.829,0.000465,120]
[312304361,1705766617296,-2839.829,0.000465,120]
[312304362,1705766617320,-1852.662,0.000465,120]
[312304363,1705766617348,-2839.829,0.000465,120]
[312304364,1705766617371,-1852.662,0.000465,120]
[312304365,1705766617396,-1852.662,0.000465,120]
[312304366,1705766617420,-1852.662,0.000465,120]
[312304367,1705766617445,-500.0,0.00046575,40]
[312304368,1705766617469,-924.66,0.00046575,40]
[312304369,1705766617495,-500.0,0.00046575,40]
[312304370,1705766617521,-500.0,0.00046849,40]
[312304371,1705766617549,-924.66,0.00046849,40]
[312304372,1705766617574,-500.0,0.00046849,40]
[312304373,1705766617600,-288.20001338,0.00047123,40]
[312304374,1705766617624,-924.66,0.00047123,40]
[312304375,1705766617649,-500.0,0.00047123,40]
[312304376,1705766617676,-924.66,0.00047397,40]
[312304377,1705766617702,-500.0,0.00047397,40]
[312304378,1705766617728,-924.66,0.00047671,40]
[312304379,1705766617752,-500.0,0.00047671,40]
[312304380,1705766617779,-924.66,0.00047945,40]
[312304381,1705766617804,-500.0,0.00047945,40]
[312304382,1705766617830,-216854.96936726,0.00048,120]
[312304383,1705766617854,-1018.0,0.00048,120]
[312304384,1705766617879,-300.0,0.00048,49]
[312304385,1705766617904,-7535.0,0.00048,30]
[312304386,1705766617927,-687.75168236,0.00048,120]
[312304387,1705766617950,-20486.09848949,0.00048,30]
[312304388,1705766617976,-213.0,0.00048,30]
[312304389,1705766617999,-237.0,0.00048,30]
[312304390,1705766618027,-350.0,0.00048,120]
[312304391,1705766618052,-207.0,0.00048,30]
[312304392,1705766618076,-207.0,0.00048,30]
[312304393,1705766618099,-150.0,0.00048,30]
[312304394,1705766618122,-300.0,0.00048,120]
[312304395,1705766618146,-300.0,0.00048,120]
[312304396,1705766618169,-150.0,0.00048,60]
[312304397,1705766618192,-150.0,0.00048,60]
[312304398,1705766618216,-150.0,0.00048,60]
[312304399,1705766618240,-150.0,0.00048,60]
[312304400,1705766618264,-2053.0,0.00048,30]
[312304401,1705766618287,-150.0,0.00048,30]
[312304402,1705766618311,-1013.24968323,0.00048,120]
[312304403,1705766618335,-16000.0,0.00048,30]
[312304404,1705766618359,-200.0,0.00048,30]
[312304405,1705766618383,-150.0,0.00048,30]
[312304406,1705766618407,-80355.43904624,0.000482,120]
[312304407,1705766618433,-80355.43904621,0.000482,120]
[312304408,1705766618458,-80355.43904621,0.000482,120]
[312304409,1705766618482,-80355.43904621,0.000482,120]
[312304410,1705766618506,-80355.43904621,0.000482,120]
[312304411,1705766618530,-407.63436358,0.00048219,40]
[312304412,1705766618554,-500.0,0.00048219,40]
[312304413,1705766618578,-500.0,0.00048219,40]
[312304414,1705766618602,-2646.67,0.00048219,40]
[312304415,1705766618628,-500.0,0.00048219,40]
[312304416,1705766618654,-500.0,0.00048219,40]
[312304417,1705766618680,-1837.12,0.00048219,40]
[312304418,1705766618706,-1753.47,0.00048219,40]
[312304419,1705766618731,-1007.56,0.00048219,30]
[312304420,1705766618757,-500.0,0.00048219,40]
[312304421,1705766618782,-500.0,0.00048219,40]
[312304422,1705766618809,-500.0,0.00048219,40]
[312304423,1705766618836,-869.49,0.00048219,40]
[312304424,1705766618862,-518.52,0.00048219,40]
[312304425,1705766618887,-500.0,0.00048219,40]
[312304426,1705766618913,-552.05,0.00048219,40]
[312304427,1705766618938,-629.81822675,0.00048219,40]
[312304428,1705766618963,-734.76,0.00048219,40]
[312304429,1705766618990,-535.85,0.00048219,40]
[312304430,1705766619197,-2536.89,0.00048219,40]
[312304431,1705766619226,-500.0,0.00048219,40]
[312304432,1705766619252,-581.13,0.00048219,40]
[312304433,1705766619278,-601.79,0.00048219,40]
[312304434,1705766619304,-478.62242769,0.00048219,40]
[312304435,1705766619330,-749.18,0.00048219,40]
[312304436,1705766619355,-645.65,0.00048219,40]
[312304437,1705766619380,-673.47,0.00048219,40]
[312304438,1705766619405,-500.0,0.00048219,40]
[312304439,1705766619431,-1014.7,0.00048219,40]
[312304440,1705766619456,-731.43,0.00048219,40]
[312304441,1705766619483,-824.01,0.00048219,40]
[312304442,1705766619512,-924.66,0.00048219,40]
[312304443,1705766619537,-500.0,0.00048219,40]
[312304444,1705766619561,-400.0,0.00048384,120]
[312304445,1705766619586,-500.0,0.00048493,40]
[312304446,1705766619610,-500.0,0.00048493,40]
[312304447,1705766619634,-2646.67,0.00048493,40]
[312304448,1705766619662,-174.11859578,0.00048493,40]
[312304449,1705766619687,-500.0,0.00048493,40]
[312304450,1705766619713,-1837.12,0.00048493,40]
[312304451,1705766619741,-1753.47,0.00048493,40]
[312304452,1705766619766,-1007.56,0.00048493,30]
[312304453,1705766619791,-500.0,0.00048493,40]
[312304454,1705766619817,-500.0,0.00048493,40]
[312304455,1705766619843,-340.99343777,0.00048493,40]
[312304456,1705766619868,-869.49,0.00048493,40]
[312304457,1705766619892,-518.52,0.00048493,40]
[312304458,1705766619918,-500.0,0.00048493,40]
[312304459,1705766619942,-552.05,0.00048493,40]
[312304460,1705766619970,-734.76,0.00048493,40]
[312304461,1705766619997,-535.85,0.00048493,40]
[312304462,1705766620022,-2536.89,0.00048493,40]
[312304463,1705766620048,-500.0,0.00048493,40]
[312304464,1705766620073,-581.13,0.00048493,40]
[312304465,1705766620097,-601.79,0.00048493,40]
[312304466,1705766620122,-749.18,0.00048493,40]
[312304467,1705766620146,-645.65,0.00048493,40]
[312304468,1705766620170,-673.47,0.00048493,40]
[312304469,1705766620196,-1014.7,0.00048493,40]
[312304470,1705766620220,-731.43,0.00048493,40]
[312304471,1705766620246,-824.01,0.00048493,40]
[312304472,1705766620270,-924.66,0.00048493,40]
[312304473,1705766620294,-203.12399112,0.00048493,40]
[312304474,1705766620318,-250000.0,0.000486,64]
[312304475,1705766620341,-500000.0,0.000486,42]
[312304476,1705766620365,-782.279645,0.00048767,120]
[312304477,1705766620387,-500.0,0.00048767,40]
[312304478,1705766620411,-500.0,0.00048767,40]
[312304479,1705766620435,-2646.67,0.00048767,40]
[312304480,1705766620459,-500.0,0.00048767,40]
[312304481,1705766620484,-1837.12,0.00048767,40]
[312304482,1705766620511,-1753.47,0.00048767,40]
[312304483,1705766620535,-1007.56,0.00048767,30]
[312304484,1705766620561,-490.21573321,0.00048767,40]
[312304485,1705766620585,-500.0,0.00048767,40]
[312304486,1705766620610,-869.49,0.00048767,40]
[312304487,1705766620634,-518.52,0.00048767,40]
[312304488,1705766620659,-500.0,0.00048767,40]
[312304489,1705766620684,-552.05,0.00048767,40]
[312304490,1705766620709,-734.76,0.00048767,40]
[312304491,1705766620735,-535.85,0.00048767,40]
[312304492,1705766620764,-2536.89,0.00048767,40]
[312304493,1705766620790,-231.65520148,0.00048767,40]
[312304494,1705766620817,-581.13,0.00048767,40]
[312304495,1705766620842,-601.79,0.00048767,40]
[312304496,1705766620866,-749.18,0.00048767,40]
[312304497,1705766620891,-645.65,0.00048767,40]
[312304498,1705766620916,-673.47,0.00048767,40]
[312304499,1705766620944,-1014.7,0.00048767,40]
[312304500,1705766620969,-731.43,0.00048767,40]
[312304501,1705766620996,-824.01,0.00048767,40]
[312304502,1705766621020,-924.66,0.00048767,40]
[312304503,1705766621044,-42352.40462253,0.000488,35]
[312304504,1705766621068,-1051.38895081,0.000488,120]
[312304505,1705766621092,-350.0,0.00048877,120]
[312304506,1705766621115,-5732.59906119,0.000489,30]
[312304507,1705766621139,-1730.45856384,0.0004897,30]
[312304508,1705766621169,-500.0,0.00048987,47]
[312304509,1705766621195,-85657.1256894,0.00048987,30]
[312304510,1705766621220,-1965.09421546,0.00048989,30]
[312304511,1705766621246,-711.6501037,0.00049,30]
[312304512,1705766621271,-1348.96150412,0.00049,30]
[312304513,1705766621296,-591.52893736,0.00049,120]
[312304514,1705766621320,-500.0,0.00049,120]
[312304515,1705766621345,-1242.31,0.00049,120]
[312304516,1705766621369,-18817.69613301,0.00049,30]
[312304517,1705766621394,-599.74764967,0.00049,30]
[312304518,1705766621419,-18996.63107005,0.00049,120]
[312304519,1705766621444,-5000.0,0.00049,30]
[312304520,1705766621469,-250.0,0.00049,60]
[312304521,1705766621495,-878.0,0.00049,120]
[312304522,1705766621520,-1801.0,0.00049,120]
[312304523,1705766621543,-265782.79633209,0.00049,120]
[312304524,1705766621569,-300.0,0.00049,50]
[312304525,1705766621595,-26787.69628233,0.00049,60]
[312304526,1705766621620,-10962.92913996,0.00049,120]
[312304527,1705766621645,-167.82636506,0.00049,30]
[312304528,1705766621670,-500.0,0.00049,30]
[312304529,1705766621695,-500.0,0.00049,30]
[312304530,1705766621722,-500.0,0.00049,30]
[312304531,1705766621748,-500.0,0.00049,30]
[312304532,1705766621773,-500.0,0.00049,30]
[312304533,1705766621798,-500.0,0.00049,30]
[312304534,1705766621979,-450.0,0.00049,30]
[312304535,1705766622005,-2196.31548519,0.00049,120]
[312304536,1705766622029,-223.0,0.00049,90]
[312304537,1705766622053,-7085.0,0.00049,120]
[312304538,1705766622077,-1819.40062737,0.00049,30]
[312304539,1705766622102,-164.0,0.00049,90]
[312304540,1705766622125,-174.90380064,0.00049,120]
[312304541,1705766622149,-500.0,0.00049041,40]
[312304542,1705766622173,-362.03846093,0.00049041,40]
[312304543,1705766622197,-2646.67,0.00049041,40]
[312304544,1705766622222,-500.0,0.00049041,40]
[312304545,1705766622249,-1837.12,0.00049041,40]
[312304546,1705766622274,-1753.47,0.00049041,40]
[312304547,1705766622298,-1007.56,0.00049041,30]
[312304548,1705766622322,-500.0,0.00049041,40]
[312304549,1705766622346,-869.49,0.00049041,40]
[312304550,1705766622370,-518.52,0.00049041,40]
[312304551,1705766622394,-556.53468614,0.00049041,40]
[312304552,1705766622420,-552.05,0.00049041,40]
[312304553,1705766622446,-734.76,0.00049041,40]
[312304554,1705766622471,-535.85,0.00049041,40]
[312304555,1705766622497,-2536.89,0.00049041,40]
[312304556,1705766622523,-581.13,0.00049041,40]
[312304557,1705766622548,-601.79,0.00049041,40]
[312304558,1705766622573,-749.18,0.00049041,40]
[312304559,1705766622597,-645.65,0.00049041,40]
[312304560,1705766622622,-673.47,0.00049041,40]
[312304561,1705766622647,-1014.7,0.00049041,40]
[312304562,1705766622673,-731.43,0.00049041,40]
[312304563,1705766622699,-824.01,0.00049041,40]
[312304564,1705766622725,-924.66,0.00049041,40]
[312304565,1705766622749,-202.02330897,0.000491,60]
[312304566,1705766622773,-4274.4,0.0004912,117]
[312304567,1705766622797,-200.0,0.00049315,30]
[312304568,1705766622822,-220.0,0.00049315,30]
[312304569,1705766622848,-634.16,0.00049315,30]
[312304570,1705766622876,-500.0,0.00049315,30]
[312304571,1705766622904,-277.79692596,0.00049315,40]
[312304572,1705766622930,-2646.67,0.00049315,40]
[312304573,1705766622957,-1837.12,0.00049315,40]
[312304574,1705766622985,-1753.47,0.00049315,40]
[312304575,1705766623010,-1007.56,0.00049315,30]
[312304576,1705766623038,-498.935,0.00049315,30]
[312304577,1705766623063,-500.0,0.00049315,40]
[312304578,1705766623088,-869.49,0.00049315,40]
[312304579,1705766623114,-518.52,0.00049315,40]
[312304580,1705766623139,-552.05,0.00049315,40]
[312304581,1705766623164,-734.76,0.00049315,40]
[312304582,1705766623191,-535.85,0.00049315,40]
[312304583,1705766623216,-2536.89,0.00049315,40]
[312304584,1705766623243,-581.13,0.00049315,40]
[312304585,1705766623268,-601.79,0.00049315,40]
[312304586,1705766623293,-749.18,0.00049315,40]
[312304587,1705766623318,-645.65,0.00049315,40]
[312304588,1705766623344,-673.47,0.00049315,40]
[312304589,1705766623370,-1014.7,0.00049315,40]
[312304590,1705766623396,-731.43,0.00049315,40]
[312304591,1705766623421,-824.01,0.00049315,40]
[312304592,1705766623449,-924.66,0.00049315,40]
[312304593,1705766623473,-400.0,0.00049315,120]
[312304594,1705766623499,-176.65,0.00049315,30]
[312304595,1705766623522,-200.0,0.00049315,60]
[312304596,1705766623546,-70000.0,0.000495,120]
[312304597,1705766623572,-634.16,0.00049589,30]
[312304598,1705766623596,-509.96,0.00049589,60]
[312304599,1705766623621,-2646.67,0.00049589,40]
[312304600,1705766623648,-1837.12,0.00049589,40]
[312304601,1705766623675,-1753.47,0.00049589,40]
[312304602,1705766623700,-1007.56,0.00049589,30]
[312304603,1705766623724,-463.07976288,0.00049589,40]
[312304604,1705766623751,-869.49,0.00049589,40]
[312304605,1705766623777,-518.52,0.00049589,40]
[312304606,1705766623802,-552.05,0.00049589,40]
[312304607,1705766623831,-734.76,0.00049589,40]
[312304608,1705766623857,-535.85,0.00049589,40]
[312304609,1705766623882,-2536.89,0.00049589,40]
[312304610,1705766623911,-581.13,0.00049589,40]
[312304611,1705766623936,-601.79,0.00049589,40]
[312304612,1705766623962,-749.18,0.00049589,40]
[312304613,1705766623987,-645.65,0.00049589,40]
[312304614,1705766624013,-673.47,0.00049589,40]
[312304615,1705766624039,-1014.7,0.00049589,40]
[312304616,1705766624064,-731.43,0.00049589,40]
[312304617,1705766624088,-824.01,0.00049589,40]
[312304618,1705766624113,-924.66,0.00049589,40]
[312304619,1705766624137,-164.0,0.00049589,120]
[312304620,1705766624161,-3000.0,0.000496,47]
[312304621,1705766624185,-264.88,0.00049603,120]
[312304622,1705766624211,-209.0,0.00049615,31]
[312304623,1705766624236,-340.84,0.000497,35]
[312304624,1705766624262,-111951.38090775,0.000498,30]
[312304625,1705766624287,-22583.44924236,0.000498,120]
[312304626,1705766624312,-634.16,0.00049863,30]
[312304627,1705766624337,-509.96,0.00049863,60]
[312304628,1705766624361,-2646.67,0.00049863,40]
[312304629,1705766624388,-1837.12,0.00049863,40]
[312304630,1705766624415,-1753.47,0.00049863,40]
[312304631,1705766624439,-1007.56,0.00049863,30]
[312304632,1705766624465,-869.49,0.00049863,40]
[312304633,1705766624492,-518.52,0.00049863,40]
[312304634,1705766624517,-552.05,0.00049863,40]
[312304635,1705766624543,-734.76,0.00049863,40]
[312304636,1705766624570,-535.85,0.00049863,40]
[312304637,1705766624595,-2536.89,0.00049863,40]
[312304638,1705766624751,-581.13,0.00049863,40]
[312304639,1705766624777,-601.79,0.00049863,40]
[312304640,1705766624803,-749.18,0.00049863,40]
[312304641,1705766624831,-645.65,0.00049863,40]
[312304642,1705766624858,-673.47,0.00049863,40]
[312304643,1705766624884,-1014.7,0.00049863,40]
[312304644,1705766624910,-731.43,0.00049863,40]
[312304645,1705766624937,-824.01,0.00049863,40]
[312304646,1705766624962,-924.66,0.00049863,40]
[312304647,1705766624987,-350.0,0.00049863,120]
[312304648,1705766625013,-500.0,0.000499,30]
[312304649,1705766625038,-1896.55121332,0.000499,60]
[312304650,1705766625062,-2858.4646227,0.00049901,60]
[312304651,1705766625085,-2367.4162918,0.00049901,60]
[312304652,1705766625109,-2916.25425144,0.00049901,60]
[312304653,1705766625134,-2823.66923877,0.00049902,60]
[312304654,1705766625158,-2912.55820867,0.00049902,60]
[312304655,1705766625182,-2736.14298406,0.00049903,60]
[312304656,1705766625206,-2914.38787654,0.00049903,60]
[312304657,1705766625230,-2446.14554794,0.00049905,60]
[312304658,1705766625256,-179.82091804,0.00049906,60]
[312304659,1705766625280,-2843.18174692,0.00049906,60]
[312304660,1705766625304,-2843.20704146,0.00049906,60]
[312304661,1705766625328,-2992.73203663,0.00049907,60]
[312304662,1705766625352,-2917.35633463,0.00049907,60]
[312304663,1705766625376,-421.17016242,0.00049907,60]
[312304664,1705766625400,-2993.03955339,0.00049908,60]
[312304665,1705766625425,-2913.54201316,0.00049908,60]
[312304666,1705766625449,-2914.78919637,0.00049909,60]
[312304667,1705766625474,-2451.61428436,0.00049913,60]
[312304668,1705766625499,-2993.25397105,0.00049914,60]
[312304669,1705766625524,-2849.43220264,0.00049915,60]
[312304670,1705766625549,-2914.92605193,0.00049917,60]
[312304671,1705766625573,-1074.6317712,0.00049918,60]
[312304672,1705766625597,-2917.72253097,0.00049919,60]
[312304673,1705766625621,-750.85598843,0.00049922,60]
[312304674,1705766625646,-2829.72237059,0.00049923,60]
[312304675,1705766625673,-2919.49867764,0.00049923,60]
[312304676,1705766625698,-2992.04765831,0.00049926,60]
[312304677,1705766625722,-2276.09741949,0.00049926,60]
[312304678,1705766625748,-2916.88521219,0.00049926,60]
[312304679,1705766625772,-2455.70029979,0.00049927,60]
[312304680,1705766625797,-2915.64468487,0.00049928,60]
[312304681,1705766625823,-2722.30403055,0.00049929,60]
[312304682,1705766625848,-2839.40496136,0.0004993,60]
[312304683,1705766625871,-2912.44465735,0.0004993,60]
[312304684,1705766625897,-2915.22459616,0.00049931,60]
[312304685,1705766625923,-2851.9646952,0.00049933,60]
[312304686,1705766625950,-2915.58842931,0.00049933,60]
[312304687,1705766625975,-2508.88610823,0.00049934,60]
[312304688,1705766626000,-150.0,0.00049934,60]
[312304689,1705766626025,-2821.78855936,0.00049936,60]
[312304690,1705766626050,-2452.62093985,0.00049938,60]
[312304691,1705766626073,-2994.11300316,0.00049938,60]
[312304692,1705766626097,-242.410585,0.00049939,60]
[312304693,1705766626122,-2470.02917291,0.0004994,60]
[312304694,1705766626146,-2851.1262984,0.0004994,60]
[312304695,1705766626170,-2837.18381775,0.00049941,60]
[312304696,1705766626193,-2858.78896268,0.00049941,60]
[312304697,1705766626218,-2835.60439203,0.00049942,60]
[312304698,1705766626243,-2820.88575592,0.00049942,60]
[312304699,1705766626267,-1296.1,0.00049942,60]
[312304700,1705766626291,-2850.73461932,0.00049944,60]
[312304701,1705766626316,-251.51108076,0.00049945,60]